[Event "Chhattisgarh Masters GM 2022"]
[Site "Chhattisgarh"]
[Date "2022.09.27"]
[Round "9.4"]
[White "Ilamparthi A R"]
[Black "Deepan Chakkravarthy J."]
[Result "0-1"]
[ECO "A13"]
[WhiteElo "2269"]
[BlackElo "2439"]
[Annotator "TA"]
[PlyCount "108"]
[EventDate "2022.09.19"]
[EventCountry "IND"]
[SourceTitle "playchess.com"]
[Source "ChessBase"]
[SourceQuality "1"]
[TimeControl "5400+30"]

{[%evp 9,108,5,10,8,10,0,1,0,0,-4,0,-7,0,-10,-9,-18,-20,-27,17,-12,14,0,10,16,19,0,0,0,38,33,34,21,21,0,1,0,0,-12,-16,-17,0,-4,0,-27,-35,-102,-91,-95,-88,-108,-101,-110,-110,-115,-118,-131,-103,-114,-117,-113,-128,-227,-223,-228,-213,-203,-193,-215,0,-314,-167,-244,-213,-476,-214,-432,-211,-210,-199,-396,-338,-2265,-572,-1553,-1415,-29989,-29990,-29990,-29991,-29991,-29992,-29992,-29993,-29993,-29991,-29994,-29995,-29995,-29996,-29996,-29997]} 1. Nf3 {[%emt 0:00:02]} Nf6 {[%emt 0:00:14]} 2. c4 {[%emt 0:00:07]} e6 {[%emt 0:00:08]} 3. e3 {[%emt 0:00:05]} d5 {[%emt 0:00:05]} 4. b3 {[%emt 0:00:09]} b6 {[%emt 0:00:07]} 5. Bb2 {[%emt 0:00:08]} Bb7 {[%emt 0:00:05]} 6. Nc3 {[%emt 0:00:50] A13: English Opening: 1...e6.} Nbd7 {[%emt 0:00:06]} 7. Be2 {[%emt 0:00:24]} a6 {[%emt 0:00:05]} 8. O-O {[%emt 0:01:00] The position is equal.} Bd6 {[%emt 0:00:07]} 9. cxd5 {[%emt 0:00:45]} exd5 {[%emt 0:00:03]} 10. d4 {[%emt 0:00:15]} O-O {[%emt 0:00:19]} 11. Qc2 {[%emt 0:01:23]} Qe7 {[%emt 0:01:23] [#]} 12. a3 $146 {[%emt 0:08:23]} ({Predecessor:} 12. Rac1 Rac8 13. Bd3 Ne4 14. Qe2 Ra8 15. Bxe4 dxe4 16. Nd2 b5 17. a4 b4 18. Na2 {0-1 (37) Gunina,V (2506)-Kovalenko,I (2644) Moscow 2013}) 12... Rfe8 {[%emt 0:04:58]} 13. b4 {[%emt 0:03:10]} Nf8 {[%emt 0:19:30]} 14. Bd3 {[%emt 0:17:22]} Ng6 {[%emt 0:00:47]} 15. Ne2 {[%emt 0:03:29]} Ne4 {[%emt 0:01:17]} 16. Ng3 {[%emt 0:01:40]} Qe6 {[%emt 0:15:19] Prevents Nf5.} 17. a4 {[%emt 0:08:21]} Bxb4 {[%emt 0:16:51]} 18. Qxc7 {[%emt 0:03:59]} Re7 {[%emt 0:08:06]} 19. Qc2 {[%emt 0:00:54]} Rc8 {[%emt 0:00:02]} 20. Qb3 {[%emt 0:03:33]} a5 {[%emt 0:00:17]} 21. Rac1 {[%emt 0:04:46]} Rec7 {[%emt 0:00:39]} 22. Rxc7 {[%emt 0:03:16]} Rxc7 {[%emt 0:00:02]} 23. Rc1 {[%emt 0:00:26]} Rxc1+ {[%emt 0:09:54]} 24. Bxc1 {[%emt 0:00:09]} Qc8 {[%emt 0:00:04]} 25. Bb2 {[%emt 0:01:32]} Ne7 {[%emt 0:00:36]} 26. Ne2 {[%emt 0:17:06]} ({Reject} 26. Bxe4 dxe4 27. Ng5 Bd5 $17) 26... Ba6 {[%emt 0:00:37]} 27. Nf4 {[%emt 0:06:21] [#]} (27. Ne5 $15) 27... Bxd3 $1 $17 {[%emt 0:05:34]} 28. Qxd3 {[%emt 0:00:14][%cal Of4d5]} Qc6 {[%emt 0:03:22]} 29. Qb3 {[%emt 0:05:56]} f6 {[%emt 0:03:59] Inhibits Ne5. Black is more active.} 30. h4 {[%emt 0:00:58]} g6 {[%emt 0:07:31]} 31. g3 {[%emt 0:02:13]} Kg7 {[%emt 0:00:28]} 32. Kg2 {[%emt 0:01:43]} h6 {[%emt 0:00:06][%cal Bh7h6,Bh6g5][%mdl 32]} 33. Qd1 {[%emt 0:02:29]} g5 {[%emt 0:00:53]} 34. hxg5 {[%emt 0:00:06]} hxg5 {[%emt 0:00:03]} 35. Nh5+ {[%emt 0:00:53]} (35. Nd3 $17 {was called for.}) 35... Kg6 $19 {[%emt 0:00:21]} 36. g4 {[%emt 0:00:32]} b5 {[%emt 0:01:30]} 37. axb5 {[%emt 0:02:16]} Qxb5 {[%emt 0:00:02]} ({Worse is} 37... Qd7 38. Nxf6 Kxf6 39. Ne5 $15) 38. Ba1 {[%emt 0:00:37]} Bd6 $2 {[%emt 0:00:42]} ({Better is} 38... a4 $19 {White must now prevent ...a3.} 39. Ng1 Kf7) 39. Qc2 $2 {[%emt 0:00:59][%mdl 8192]} (39. Ne5+ $1 $11 fxe5 40. dxe5) 39... a4 {[%emt 0:00:59]} (39... Qd7 $142 40. Nxf6 Kxf6) 40. Ng1 {[%emt 0:00:56]} (40. Ne1 $142 Qb3 41. f3 Qxe3 42. fxe4 dxe4 43. Kf1) 40... Qb3 {[%emt 0:02:12]} 41. Qe2 {[%emt 0:00:00]} (41. Qxb3 {was the only defense.} axb3 42. Ne2) 41... Qc4 {[%emt 0:00:00]} ({Don't go for} 41... Qb1 $2 42. f3 Qxa1 43. fxe4 dxe4 44. Qa6 Qa2+ 45. Ne2 $19) (41... f5 $142 42. f3 fxg4 43. fxe4 Kxh5) 42. Qd1 $2 {[%emt 0:00:00]} (42. f3 Qxe2+ 43. Nxe2) 42... Qb4 {[%emt 0:00:00]} (42... Qa2 $142 43. Ne2 f5) 43. Ne2 {[%emt 0:00:00]} Qb3 {[%emt 0:00:00] The board is on fire.} 44. Qe1 {[%emt 0:00:00]} (44. Qxb3 {might work better.} axb3 45. Nc1) 44... Qc2 {[%emt 0:00:00]} 45. Kg1 $2 {[%emt 0:01:29] [#]} (45. Nc3) 45... Bb4 $1 {[%emt 0:00:00][%mdl 512]} 46. Qxb4 {[%emt 0:00:27]} (46. Qf1 Nd2) 46... Qxe2 {[%emt 0:00:00]} 47. Qxe7 {[%emt 0:00:12]} Qxf2+ {[%emt 0:00:00] Black mates.} 48. Kh1 {[%emt 0:00:03]} Qh4+ {[%emt 0:00:00]} 49. Kg2 {[%emt 0:00:06]} Qxg4+ {[%emt 0:00:00]} 50. Kf1 {[%emt 0:00:10]} Qf3+ {[%emt 0:00:00]} 51. Kg1 {[%emt 0:00:01]} Qf2+ {[%emt 0:00:00]} 52. Kh1 {[%emt 0:00:02]} Kxh5 {[%emt 0:00:00][%cal Re4g3]} 53. Qe8+ {[%emt 0:00:49]} Kg4 {[%emt 0:00:00][%cal Re4g3]} 54. Qc8+ {[%emt 0:00:07]} f5 {[%emt 0:00:00] Weighted Error Value: White=0.64/Black=0.44} 0-1

[Event "Chhattisgarh Masters GM 2022"]
[Site "Chhattisgarh"]
[Date "2022.09.27"]
[Round "9.5"]
[White "Nitin, S.."]
[Black "Krasenkow, Michal"]
[Result "0-1"]
[ECO "B07"]
[WhiteElo "2416"]
[BlackElo "2545"]
[Annotator "TA"]
[PlyCount "106"]
[EventDate "2022.09.19"]
[EventCountry "IND"]
[SourceTitle "playchess.com"]
[Source "ChessBase"]
[SourceQuality "1"]
[TimeControl "5400+30"]

{[%evp 15,106,68,42,31,39,39,51,30,82,75,85,76,81,86,79,26,39,11,26,9,9,0,6,0,-11,-35,-36,-27,-31,-64,-62,-67,-72,-64,-43,-115,-94,-122,-114,-150,-72,-86,-57,-62,-74,-110,-98,-96,-94,-131,-65,-112,-119,-174,-170,-254,-249,-245,-238,-344,-227,-227,-227,-225,-218,-275,-218,-248,-230,-237,-237,-192,-155,-692,-616,-637,-650,-596,-592,-746,-720,-12836,-12836,-29975,-29960,-12840,-12838,-12835,-5557,-29985,-29986,-29987,-29983]} 1. e4 {[%emt 0:00:33]} g6 {[%emt 0:00:12]} 2. d4 {[%emt 0:01:05]} Bg7 {[%emt 0:00:06]} 3. Nf3 {[%emt 0:00:09]} d6 {[%emt 0:00:04]} 4. Be3 {[%emt 0:01:59]} Nf6 {[%emt 0:01:10]} 5. Bd3 {[%emt 0:01:32]} O-O {[%emt 0:01:05]} 6. O-O {[%emt 0:02:10]} Nc6 {[%emt 0:02:32]} 7. c3 {[%emt 0:00:31]} Bg4 {[%emt 0:02:27]} 8. Nbd2 {[%emt 0:01:22]} e5 {[%emt 0:00:06]} 9. Qb3 {[%emt 0:05:15] [#] B07: Pirc Defence: Miscellaneous Systems.} exd4 $146 {[%emt 0:05:28]} ({Predecessor:} 9... Qc8 10. Rfe1 a6 11. h3 Bd7 12. Rad1 h6 13. a3 g5 14. dxe5 dxe5 15. Nf1 Nh5 16. Qc2 Be6 {1-0 (56) Braun,V (2212)-Thom,R (2035) Werther 2003}) 10. cxd4 {[%emt 0:01:25]} a5 {[%emt 0:05:35][%cal Ba7a5,Ba5a4][%mdl 32]} 11. a3 {[%emt 0:01:47] White is slightly better.} ({Don't play} 11. Qxb7 Nb4 12. Be2 Bxf3 13. Bxf3 (13. Nxf3 Rb8 $11) 13... Rb8 $11) 11... Qb8 {[%emt 0:02:00]} (11... a4 $11 {remains equal.} 12. Qxb7 Bd7) 12. h3 $16 {[%emt 0:09:19]} a4 {[%emt 0:01:11]} 13. Qc2 {[%emt 0:03:21]} Bd7 {[%emt 0:00:14]} 14. Rac1 {[%emt 0:11:22]} Rc8 {[%emt 0:00:53]} 15. Qb1 {[%emt 0:00:14]} (15. Bc4 $16) 15... b5 {[%emt 0:02:19]} 16. Rc2 {[%emt 0:18:09]} Na5 {[%emt 0:04:26]} 17. Rfc1 {[%emt 0:01:30]} c6 {[%emt 0:03:46]} 18. Bf4 {[%emt 0:00:32]} (18. Ng5 {keeps more tension.} Re8 19. Qa2 Re7 20. Ngf3) 18... Be6 {[%emt 0:03:00]} 19. Bh2 {[%emt 0:06:57]} b4 {[%emt 0:02:51]} 20. axb4 {[%emt 0:04:15]} Qxb4 {[%emt 0:00:55]} 21. e5 {[%emt 0:05:31]} dxe5 {[%emt 0:05:07]} 22. dxe5 {[%emt 0:00:47]} Nd7 {[%emt 0:02:39][%cal Bf6d7,Bd7c5,Bc5e6][%mdl 32]} 23. Ne4 {[%emt 0:10:10]} Nb3 {[%emt 0:08:52]} 24. Rd1 {[%emt 0:00:08]} Bd5 {[%emt 0:00:12]} 25. Re2 {[%emt 0:01:45]} ({White should play} 25. Nd6 $15 Rf8 26. Be4) 25... Ndc5 $17 {[%emt 0:05:12]} 26. Bc2 {[%emt 0:00:43]} Ne6 {[%emt 0:00:48]} 27. Re3 {[%emt 0:04:26]} Rd8 {[%emt 0:05:24]} (27... Bh6 $142 28. Nf6+ Kg7 29. Nxd5 cxd5) 28. Rde1 {[%emt 0:01:23]} c5 {[%emt 0:07:06]} 29. Nf6+ {[%emt 0:05:02]} Bxf6 {[%emt 0:00:16][%cal Bg7f6,Bf6e7,Be7f8][%mdl 32]} 30. Bxb3 {[%emt 0:00:18]} Be7 {[%emt 0:01:56]} ({Reject} 30... Bxb3 $6 31. exf6 Rd5 32. Ne5 $14) 31. Bxd5 {[%emt 0:00:31]} Rxd5 {[%emt 0:00:06]} 32. Re4 {[%emt 0:01:43]} Qb5 {[%emt 0:04:34] Black has more active pieces.} (32... c4 $17 {And now ...Rb5 would win.} 33. Qc1 Rc8) 33. Bg3 {[%emt 0:00:28]} (33. Qc2 $15) 33... Rd3 {[%emt 0:07:33]} 34. Bh4 {[%emt 0:00:24]} (34. Bf4 $17) 34... Bf8 $1 $19 {[%emt 0:00:53]} 35. Qc1 {[%emt 0:00:38] [#]} (35. Qc2 {keeps fighting.}) 35... Rb3 $1 {[%emt 0:00:31]} 36. R4e2 {[%emt 0:00:34]} Rb8 {[%emt 0:00:40][%cal Rb3b2]} 37. Qa1 {[%emt 0:00:01]} (37. Bf6 {is a better defense.}) 37... Nd4 {[%emt 0:04:54]} 38. Nxd4 {[%emt 0:00:09]} cxd4 {[%emt 0:00:02]} 39. e6 {[%emt 0:00:55]} fxe6 {[%emt 0:01:29]} 40. Re5 {[%emt 0:00:48]} Qb4 {[%emt 0:01:18]} 41. Qd1 {[%emt 0:00:00]} Rxb2 {[%emt 0:00:00] Strongly threatening ...Rb1.} 42. Qg4 {[%emt 0:00:00]} Rb6 {[%emt 0:00:00] Hoping for ...a3.} 43. Rxe6 {[%emt 0:00:00] aiming for Be7.} Rb1 {[%emt 0:00:00]} 44. f4 $2 {[%emt 0:00:00] This move loses the game for White.} (44. Rxb1 $17 Qxb1+ 45. Kh2) 44... d3 {[%emt 0:00:00][%cal Bd4d3,Bd3d2][%mdl 32] Threatens to win with ...d2.} 45. Rxb1 {[%emt 0:00:00]} Qxb1+ {[%emt 0:00:00]} 46. Re1 {[%emt 0:00:00]} Qb4 {[%emt 0:00:00]} 47. Re8 {[%emt 0:00:00]} d2 {[%emt 0:00:00] ...Qd4+ is the strong threat.} 48. Rd8 {[%emt 0:00:00] Prevents Qd4+.} Rd6 {[%emt 0:00:00]} 49. Rxf8+ {[%emt 0:00:00]} Kxf8 {[%emt 0:00:00]} 50. Qc8+ {[%emt 0:00:00]} Kf7 {[%emt 0:00:00]} 51. Qc7+ {[%emt 0:00:00] [#]} Ke6 $1 {[%emt 0:00:00]} 52. Qc8+ {[%emt 0:00:00]} Kd5 {[%emt 0:00:00]} 53. Qg8+ {[%emt 0:00:00]} Kd4 {[%emt 0:00:00] Weighted Error Value: White=0.60/Black=0.11 (very precise)} 0-1

[Event "Chhattisgarh Masters GM 2022"]
[Site "Chhattisgarh"]
[Date "2022.09.27"]
[Round "9.5"]
[White "Nayak Rajesh"]
[Black "Sharma, Dinesh K."]
[Result "1/2-1/2"]
[ECO "D00"]
[WhiteElo "2142"]
[BlackElo "2252"]
[Annotator "TA"]
[PlyCount "132"]
[EventDate "2022.09.19"]
[EventCountry "IND"]
[SourceTitle "playchess.com"]
[Source "ChessBase"]
[SourceQuality "1"]
[TimeControl "5400+30"]

{[%evp 9,132,6,24,28,31,29,30,27,52,37,51,25,29,20,29,12,20,17,20,22,33,27,51,55,40,46,73,70,61,75,75,57,99,104,84,101,99,17,153,88,127,71,56,0,0,0,0,0,43,57,53,19,18,7,7,7,129,115,285,199,273,271,283,258,246,126,135,124,113,87,185,87,86,86,379,336,696,695,721,710,957,945,882,8,8,8,8,8,8,0,8,8,8,0,0,0,0,0,0,0,0,0,0,0,0,0,0,0,0,0,0,0,0,0,0,0,0,0,0,0,0,0,0,0,0]} 1. d4 {[%emt 0:00:04]} d5 {[%emt 0:01:09]} 2. Bf4 {[%emt 0:00:44]} Nf6 {[%emt 0:01:20]} 3. Nc3 {[%emt 0:00:08]} c6 {[%emt 0:04:45]} 4. e3 {[%emt 0:02:36]} Bf5 {[%emt 0:00:12]} 5. f3 {[%emt 0:04:27]} e6 {[%emt 0:01:21]} 6. g4 {[%emt 0:02:58][%cal Bg2g4,Bg4g5][%mdl 32] D00: 1 d4 d5: Unusual lines.} Bg6 {[%emt 0:00:58]} 7. h4 {[%emt 0:00:07]} h5 {[%emt 0:02:15]} 8. g5 {[%emt 0:05:29] White has an edge.} Ng8 $1 {[%emt 0:00:19][%mdl 4] now scores much better than the old 8...Nfd7.} 9. Qd2 {[%emt 0:08:09]} (9. Bd3 $5 {[%cal Rd3g6]}) 9... Bd6 {[%emt 0:02:01]} 10. Nge2 {[%emt 0:01:35]} Ne7 {[%emt 0:00:58]} 11. O-O-O {[%emt 0:00:55] [#]} b5 $146 {[%emt 0:06:56]} ({Predecessor:} 11... Na6 12. Bxd6 Qxd6 13. Nf4 Nc7 14. Bd3 Bf5 15. Bxf5 exf5 16. e4 O-O-O 17. exd5 Nexd5 18. Ncxd5 Nxd5 {1-0 (37) Kovalev,V (2545)-Ageichenko,G (2265) Voronezh 2015}) 12. Bxd6 {[%emt 0:09:26]} Qxd6 {[%emt 0:00:37]} 13. Nf4 {[%emt 0:00:11]} Nd7 {[%emt 0:01:21][%cal Bb8d7,Bd7b6,Bb6a4,Ba4c5,Bc5e4][%mdl 32]} 14. Qh2 {[%emt 0:05:31]} a6 {[%emt 0:11:39]} 15. e4 {[%emt 0:09:32]} Qb8 {[%emt 0:07:30]} 16. Bd3 {[%emt 0:01:58]} Nb6 {[%emt 0:10:00]} 17. Nce2 {[%emt 0:09:44]} dxe4 {[%emt 0:03:06]} 18. fxe4 {[%emt 0:00:17]} ({Reject} 18. Nxg6 $6 exd3 19. Nxh8 dxe2 $15) 18... e5 {[%emt 0:02:04]} 19. dxe5 {[%emt 0:09:08]} Qxe5 {[%emt 0:01:33]} 20. Qf2 {[%emt 0:01:21]} Na4 {[%emt 0:04:43]} 21. Qd4 {[%emt 0:00:31]} Qxd4 {[%emt 0:05:55]} 22. Nxd4 {[%emt 0:00:07]} Nc5 {[%emt 0:02:08]} 23. Nxg6 {[%emt 0:14:20] White is more active.} (23. Rhe1 $16) 23... fxg6 {[%emt 0:01:45]} (23... Nxg6 $11 24. Nxc6 O-O) 24. Rhf1 {[%emt 0:02:10]} (24. b4 $142 Na4 25. Ne6) 24... Rd8 {[%emt 0:10:59] [#]} 25. Be2 {[%emt 0:01:37]} (25. b4 $142 $1) 25... Nxe4 $16 {[%emt 0:08:57]} 26. Nxc6 {[%emt 0:00:31]} Rxd1+ $11 {[%emt 0:02:34]} (26... Nxc6 $5 27. Bf3 $8 Rxd1+ 28. Rxd1 O-O 29. Bxe4 Ne7 $11) 27. Rxd1 {[%emt 0:00:14]} Nxc6 {[%emt 0:00:56] Pair of Knights!} 28. Bf3 {[%emt 0:00:05][%cal Be2f3,Bf3e4,Be4g6][%mdl 32]} Ne5 {[%emt 0:00:33]} 29. Bxe4 $14 {[%emt 0:00:09][%mdl 4096] Endgame KRB-KRN} Ke7 {[%emt 0:00:05]} 30. a4 {[%emt 0:00:25]} Rf8 $1 {[%emt 0:00:45]} 31. axb5 {[%emt 0:01:10]} axb5 {[%emt 0:00:36]} 32. Rd5 {[%emt 0:01:28][%csl LRb5,LRe5]} Nc4 {[%emt 0:01:05]} (32... Rf1+ $11 {remains equal.} 33. Kd2 Ke6) 33. Bxg6 $16 {[%emt 0:00:43]} Rb8 $2 {[%emt 0:03:34]} (33... Ke6 $16 34. Rd1 Rf2) 34. Bxh5 {[%emt 0:00:55] Hoping for b3.} Ra8 {[%emt 0:00:06]} (34... Rh8 $142) 35. Kb1 $18 {[%emt 0:00:43]} Rh8 {[%emt 0:00:01]} 36. Be2 {[%emt 0:00:30]} ({Inferior is} 36. Rxb5 Rxh5 37. Rb7+ Kf8 $17) 36... Rxh4 {[%emt 0:00:18]} 37. Bxc4 {[%emt 0:00:57]} ({Better is} 37. b3 $18) 37... bxc4 {[%emt 0:00:06] KR-KR} 38. Ka2 {[%emt 0:00:31]} Ke6 {[%emt 0:00:16]} 39. Ra5 {[%emt 0:00:09]} Rg4 {[%emt 0:01:20]} (39... Rh2 $16 {keeps fighting.}) 40. Ka3 {[%emt 0:00:10]} (40. b4 $18 {and White stays clearly on top.}) 40... Rg2 $16 {[%emt 0:00:16]} 41. c3 {[%emt 0:00:39]} Kd6 $2 {[%emt 0:00:49][%mdl 8192] [#]} (41... g6 $16) 42. Ra6+ $1 $18 {[%emt 0:00:41]} Kc5 $2 {[%emt 0:01:02]} (42... Ke7 43. Ra7+ Kf8) 43. Rg6 {[%emt 0:00:08]} Kb5 {[%emt 0:00:08]} 44. Rxg7 {[%emt 0:00:10]} Rg1 {[%emt 0:00:27]} 45. Ka2 {[%emt 0:00:06] aiming for g6.} Ka4 {[%emt 0:00:17]} 46. Rg8 $2 {[%emt 0:00:18]} (46. Rb7 $18 Rxg5 47. Rb4+ Ka5 48. Rxc4) 46... Rxg5 $1 $11 {[%emt 0:00:13] The position is equal.} 47. Rb8 {[%emt 0:00:31] Threatens to win with Rb4+.} Rb5 {[%emt 0:00:00] Prevents Rb4+.} 48. Rc8 {[%emt 0:00:00]} Rc5 {[%emt 0:00:00]} 49. Rg8 {[%emt 0:00:00]} Rg5 {[%emt 0:00:00]} 50. Ra8+ {[%emt 0:00:00]} (50. Rf8 $5 {[%cal Rf8b8]}) 50... Ra5 {[%emt 0:00:00]} 51. Rxa5+ {[%emt 0:00:00]} Kxa5 {[%emt 0:00:00] KPP-KP} 52. Kb1 {[%emt 0:00:00]} Kb5 {[%emt 0:00:00]} 53. Kc1 {[%emt 0:00:00]} Kc5 {[%emt 0:00:00]} 54. Kc2 {[%emt 0:00:00]} Kc6 {[%emt 0:00:00]} 55. Kd1 {[%emt 0:00:00]} Kd5 {[%emt 0:00:00]} 56. Kd2 {[%emt 0:00:00]} Kd6 {[%emt 0:00:00]} 57. Kc2 {[%emt 0:00:00]} Kc6 {[%emt 0:00:00]} 58. Kd1 {[%emt 0:00:00]} Kd5 {[%emt 0:00:00]} 59. Ke1 $1 {[%emt 0:00:00]} Ke5 {[%emt 0:00:00]} 60. Kf1 {[%emt 0:00:00]} Kf5 {[%emt 0:00:00]} 61. Kf2 {[%emt 0:00:00]} Kf6 {[%emt 0:00:00]} (61... Ke4 $5 {[%cal Re4d3]} 62. Ke2 Kf4 $11) 62. Kg2 {[%emt 0:00:00]} Kg6 {[%emt 0:00:00]} 63. Kf3 {[%emt 0:00:00]} Kf5 {[%emt 0:00:00]} 64. Ke3 {[%emt 0:00:00] White wants to mate with Kd4.} Ke5 {[%emt 0:00:00]} 65. Kd2 {[%emt 0:00:00] Intending Ke3 and mate.} Kd6 {[%emt 0:00:00]} 66. Kc2 {[%emt 0:00:00]} Kc6 {[%emt 0:00:00] Black escapes into a draw.  Weighted Error Value: White=0.31/Black=0.41} 1/2-1/2